[Event "*** Titled Tuesday Blitz"]
[Site "Chess.com"]
[Date "2021.03.30"]
[Round "1"]
[White "Kolle05"]
[Black "KNVB"]
[Result "0-1"]
[WhiteElo "2371"]
[BlackElo "2689"]
[TimeControl "180+1"]
[EndTime "10:08:18 PDT"]
[Termination "KNVB won by resignation"]

1. e4 {[%clk 0:02:50.4]} 1... c5 {[%clk 0:02:54.2]} 2. Nf3 {[%clk 0:02:50]} 2...
e6 {[%clk 0:02:51.2]} 3. d4 {[%clk 0:02:47.4]} 3... cxd4 {[%clk 0:02:52.1]} 4.
Nxd4 {[%clk 0:02:48.3]} 4... Nc6 {[%clk 0:02:51.8]} 5. Nc3 {[%clk 0:02:46.5]}
5... Qc7 {[%clk 0:02:48.9]} 6. g3 {[%clk 0:02:46.3]} 6... a6 {[%clk 0:02:48.3]}
7. Bg2 {[%clk 0:02:46]} 7... Nf6 {[%clk 0:02:48]} 8. O-O {[%clk 0:02:45.6]} 8...
Nxd4 {[%clk 0:02:47]} 9. Qxd4 {[%clk 0:02:46.5]} 9... Bc5 {[%clk 0:02:47.3]} 10.
Bf4 {[%clk 0:02:46.3]} 10... d6 {[%clk 0:02:47.7]} 11. Qd2 {[%clk 0:02:44.8]}
11... h6 {[%clk 0:02:47.9]} 12. Rad1 {[%clk 0:02:35.6]} 12... e5 {[%clk
0:02:46]} 13. Be3 {[%clk 0:02:36.1]} 13... Bg4 {[%clk 0:02:39.9]} 14. f4 {[%clk
0:02:25.7]} 14... Bxd1 {[%clk 0:02:03]} 15. Rxd1 {[%clk 0:02:26.6]} 15... Bxe3+
{[%clk 0:01:44.2]} 16. Qxe3 {[%clk 0:02:27.5]} 16... Ng4 {[%clk 0:01:43.4]} 17.
Nd5 {[%clk 0:02:17.4]} 17... Nxe3 {[%clk 0:01:12.6]} 18. Nxc7+ {[%clk
0:02:16.4]} 18... Kd8 {[%clk 0:00:38.4]} 19. Rd3 {[%clk 0:02:01.3]} 19... Kxc7
{[%clk 0:00:37.8]} 20. Rxe3 {[%clk 0:01:59.8]} 20... Rhe8 {[%clk 0:00:22.2]} 21.
Kf2 {[%clk 0:01:54.9]} 21... Kd8 {[%clk 0:00:13.6]} 22. Rd3 {[%clk 0:01:51.5]}
22... Ke7 {[%clk 0:00:13.4]} 23. Ke3 {[%clk 0:01:51.8]} 23... Rac8 {[%clk
0:00:13.3]} 24. c3 {[%clk 0:01:51.9]} 24... Red8 {[%clk 0:00:12.9]} 25. a3
{[%clk 0:01:51.7]} 25... g6 {[%clk 0:00:12.4]} 26. h4 {[%clk 0:01:29.1]} 26...
Rb8 {[%clk 0:00:10.2]} 27. Rd5 {[%clk 0:01:27.9]} 27... f6 {[%clk 0:00:06.2]}
28. g4 {[%clk 0:01:20.3]} 28... exf4+ {[%clk 0:00:03.4]} 29. Kxf4 {[%clk
0:01:20.4]} 29... Rbc8 {[%clk 0:00:04]} 30. Rd4 {[%clk 0:01:17.1]} 30... Rc5
{[%clk 0:00:04]} 31. Bf3 {[%clk 0:01:05.6]} 31... g5+ {[%clk 0:00:04.1]} 32.
hxg5 {[%clk 0:01:05.5]} 32... hxg5+ {[%clk 0:00:05]} 33. Kg3 {[%clk 0:01:04.3]}
33... Rh8 {[%clk 0:00:05.7]} 34. Kg2 {[%clk 0:01:04.1]} 34... b5 {[%clk
0:00:05.4]} 35. Rd1 {[%clk 0:00:59.9]} 35... Ke6 {[%clk 0:00:04.8]} 36. Kg3
{[%clk 0:00:55.8]} 36... Rc7 {[%clk 0:00:04.8]} 37. Rd5 {[%clk 0:00:54.6]} 37...
Rc5 {[%clk 0:00:04.7]} 38. Rd4 {[%clk 0:00:54.1]} 38... a5 {[%clk 0:00:04.6]}
39. Bg2 {[%clk 0:00:52.9]} 39... Rc4 {[%clk 0:00:04.2]} 40. Rd5 {[%clk
0:00:51.6]} 40... Rc5 {[%clk 0:00:04.6]} 41. Rd4 {[%clk 0:00:51.9]} 41... Rb8
{[%clk 0:00:05.2]} 42. Bf1 {[%clk 0:00:49.7]} 42... b4 {[%clk 0:00:05.2]} 43.
axb4 {[%clk 0:00:48.2]} 43... axb4 {[%clk 0:00:06.1]} 44. cxb4 {[%clk
0:00:49.1]} 44... Rc1 {[%clk 0:00:03.3]} 45. Bc4+ {[%clk 0:00:42.9]} 45... Ke5
{[%clk 0:00:03.8]} 46. Rd5+ {[%clk 0:00:38.5]} 46... Kxe4 {[%clk 0:00:04.3]} 47.
b3 {[%clk 0:00:38.1]} 47... Rc3+ {[%clk 0:00:04.2]} 48. Kg2 {[%clk 0:00:36.7]}
48... Ra8 {[%clk 0:00:03.1]} 49. Ra5 {[%clk 0:00:28.5]} 49... Rxa5 {[%clk
0:00:02.2]} 50. bxa5 {[%clk 0:00:29.4]} 50... Rc2+ {[%clk 0:00:03]} 51. Kg3
{[%clk 0:00:29.1]} 51... d5 {[%clk 0:00:03.5]} 52. Bb5 {[%clk 0:00:14.3]} 52...
Rc3+ {[%clk 0:00:03.5]} 53. Kg2 {[%clk 0:00:14.8]} 53... Rxb3 {[%clk 0:00:04.3]}
54. Bd7 {[%clk 0:00:14.8]} 54... Rb2+ {[%clk 0:00:03.6]} 55. Kg3 {[%clk
0:00:14.6]} 55... Ra2 {[%clk 0:00:02.6]} 56. Bf5+ {[%clk 0:00:15.5]} 56... Ke3
{[%clk 0:00:03]} 57. Be6 {[%clk 0:00:15.8]} 57... Rxa5 {[%clk 0:00:02.9]} 58.
Bf5 {[%clk 0:00:15.7]} 58... d4 {[%clk 0:00:03.5]} 59. Kg2 {[%clk 0:00:16.5]}
59... d3 {[%clk 0:00:04.3]} 60. Kf1 {[%clk 0:00:17.4]} 60... d2 {[%clk 0:00:05]}
61. Bc2 {[%clk 0:00:17.1]} 61... Rc5 {[%clk 0:00:05.9]} 62. Kg2 {[%clk
0:00:17.9]} 62... Rxc2 {[%clk 0:00:05.7]} 0-1

[Event "*** Titled Tuesday Blitz"]
[Site "Chess.com"]
[Date "2021.03.30"]
[Round "1"]
[White "DrCeltic"]
[Black "OK97"]
[Result "0-1"]
[WhiteElo "2424"]
[BlackElo "2801"]
[TimeControl "180+1"]
[EndTime "10:08:19 PDT"]
[Termination "OK97 won on time"]

1. e4 {[%clk 0:03:00.9]} 1... e6 {[%clk 0:02:58.9]} 2. d4 {[%clk 0:03:00.7]}
2... d5 {[%clk 0:02:59.5]} 3. Nc3 {[%clk 0:02:59.5]} 3... Bb4 {[%clk 0:02:57.9]}
4. Qd3 {[%clk 0:02:59.4]} 4... Nc6 {[%clk 0:02:46.7]} 5. Nf3 {[%clk 0:02:54.9]}
5... Nge7 {[%clk 0:02:42.5]} 6. Bd2 {[%clk 0:02:38.7]} 6... b6 {[%clk 0:02:38]}
7. O-O-O {[%clk 0:02:32.1]} 7... a5 {[%clk 0:02:33]} 8. exd5 {[%clk 0:02:16.4]}
8... exd5 {[%clk 0:02:32.5]} 9. a3 {[%clk 0:02:05.2]} 9... Bxc3 {[%clk
0:02:21.9]} 10. Qxc3 {[%clk 0:02:01.9]} 10... O-O {[%clk 0:02:17.7]} 11. Bb5
{[%clk 0:01:59.5]} 11... Bd7 {[%clk 0:02:12]} 12. Bg5 {[%clk 0:01:52.9]} 12...
f6 {[%clk 0:02:09.6]} 13. Bf4 {[%clk 0:01:48.3]} 13... Nb4 {[%clk 0:02:03.9]}
14. axb4 {[%clk 0:01:38]} 14... Bxb5 {[%clk 0:02:01.9]} 15. Qxc7 {[%clk
0:01:23.6]} 15... axb4 {[%clk 0:01:57.8]} 16. Qxd8 {[%clk 0:01:04]} 16... Rfxd8
{[%clk 0:01:58.7]} 17. Bc7 {[%clk 0:00:54.3]} 17... Rdc8 {[%clk 0:01:57.9]} 18.
Bxb6 {[%clk 0:00:48]} 18... b3 {[%clk 0:01:42.3]} 19. Bc5 {[%clk 0:00:43.1]}
19... bxc2 {[%clk 0:01:36.9]} 20. Kxc2 {[%clk 0:00:41.2]} 20... Nc6 {[%clk
0:01:33.9]} 21. Ra1 {[%clk 0:00:23.3]} 21... Nxd4+ {[%clk 0:01:28.1]} 22. Nxd4
{[%clk 0:00:24.2]} 22... Rxc5+ {[%clk 0:01:28.1]} 23. Kd2 {[%clk 0:00:24.8]}
23... Rac8 {[%clk 0:01:11.8]} 24. Rac1 {[%clk 0:00:24.3]} 24... Bc4 {[%clk
0:00:49.8]} 25. b3 {[%clk 0:00:23.2]} 25... Ba6 {[%clk 0:00:49.9]} 26. Rxc5
{[%clk 0:00:23]} 26... Rxc5 {[%clk 0:00:50.8]} 27. Ra1 {[%clk 0:00:23]} 27...
Bc8 {[%clk 0:00:49.5]} 28. Ra8 {[%clk 0:00:22.8]} 28... Kf7 {[%clk 0:00:49.5]}
29. Ra7+ {[%clk 0:00:22.9]} 29... Kg6 {[%clk 0:00:48.9]} 30. Kd3 {[%clk
0:00:22]} 30... Rc1 {[%clk 0:00:40.2]} 31. b4 {[%clk 0:00:17.1]} 31... Rd1+
{[%clk 0:00:36.4]} 32. Ke3 {[%clk 0:00:17.3]} 32... Re1+ {[%clk 0:00:34.5]} 33.
Kd2 {[%clk 0:00:16.6]} 33... Rb1 {[%clk 0:00:33.6]} 34. Kc3 {[%clk 0:00:12.6]}
34... Rc1+ {[%clk 0:00:29.9]} 35. Kd2 {[%clk 0:00:12.4]} 35... Rc4 {[%clk
0:00:29.8]} 36. Kd3 {[%clk 0:00:09.9]} 36... Rxb4 {[%clk 0:00:27.2]} 37. Rc7
{[%clk 0:00:10]} 37... Ba6+ {[%clk 0:00:26.1]} 38. Ke3 {[%clk 0:00:09.4]} 38...
Rb7 {[%clk 0:00:22.6]} 39. Rxb7 {[%clk 0:00:07.7]} 39... Bxb7 {[%clk 0:00:23.5]}
40. Ne6 {[%clk 0:00:07.8]} 40... Bc8 {[%clk 0:00:14]} 41. Nc7 {[%clk 0:00:06.7]}
41... Bb7 {[%clk 0:00:13.1]} 42. Kd4 {[%clk 0:00:06.6]} 42... Kf5 {[%clk
0:00:13]} 43. Nxd5 {[%clk 0:00:06.4]} 43... Bxd5 {[%clk 0:00:10.6]} 44. Kxd5
{[%clk 0:00:07.3]} 44... h5 {[%clk 0:00:09.5]} 45. Kd4 {[%clk 0:00:05.9]} 45...
Kf4 {[%clk 0:00:08.4]} 46. Kd3 {[%clk 0:00:05.6]} 46... g5 {[%clk 0:00:07.7]}
47. Ke2 {[%clk 0:00:05.8]} 47... Ke4 {[%clk 0:00:05]} 48. f3+ {[%clk 0:00:05.2]}
48... Kd4 {[%clk 0:00:04]} 49. Kd2 {[%clk 0:00:05]} 49... f5 {[%clk 0:00:03.8]}
50. g3 {[%clk 0:00:04.1]} 50... h4 {[%clk 0:00:02.1]} 51. gxh4 {[%clk
0:00:03.1]} 51... gxh4 {[%clk 0:00:03]} 52. Ke2 {[%clk 0:00:01.7]} 52... f4
{[%clk 0:00:02.7]} 53. Kd2 {[%clk 0:00:01.4]} 53... h3 {[%clk 0:00:02.9]} 0-1

[Event "*** Titled Tuesday Blitz"]
[Site "Chess.com"]
[Date "2021.03.30"]
[Round "1"]
[White "Tenamu"]
[Black "ZiggyStardust64"]
[Result "0-1"]
[WhiteElo "2391"]
[BlackElo "2722"]
[TimeControl "180+1"]
[EndTime "10:08:19 PDT"]
[Termination "ZiggyStardust64 won by checkmate"]

1. e4 {[%clk 0:02:56.3]} 1... e5 {[%clk 0:02:59.6]} 2. Nf3 {[%clk 0:02:56]} 2...
Nc6 {[%clk 0:03:00.1]} 3. Bb5 {[%clk 0:02:56.1]} 3... a6 {[%clk 0:03:00.6]} 4.
Ba4 {[%clk 0:02:55.7]} 4... Nf6 {[%clk 0:03:00.3]} 5. O-O {[%clk 0:02:55.7]}
5... Bc5 {[%clk 0:03:00.7]} 6. c3 {[%clk 0:02:52.5]} 6... O-O {[%clk 0:03:00.8]}
7. d4 {[%clk 0:02:51]} 7... Ba7 {[%clk 0:03:01.4]} 8. Bg5 {[%clk 0:02:49.7]}
8... h6 {[%clk 0:03:01.5]} 9. Bh4 {[%clk 0:02:48.7]} 9... d6 {[%clk 0:03:02.1]}
10. Bxc6 {[%clk 0:02:44]} 10... bxc6 {[%clk 0:03:02.1]} 11. Nbd2 {[%clk
0:02:39.2]} 11... Bg4 {[%clk 0:02:43]} 12. dxe5 {[%clk 0:02:37.9]} 12... dxe5
{[%clk 0:02:39.5]} 13. h3 {[%clk 0:02:37.7]} 13... Bxf3 {[%clk 0:02:32.2]} 14.
Nxf3 {[%clk 0:02:35.6]} 14... Qxd1 {[%clk 0:02:32.3]} 15. Raxd1 {[%clk
0:02:29.3]} 15... Nxe4 {[%clk 0:02:32.8]} 16. Rfe1 {[%clk 0:02:00.8]} 16... f5
{[%clk 0:02:32.5]} 17. Kf1 {[%clk 0:01:36.6]} 17... g5 {[%clk 0:02:13.1]} 18.
Bg3 {[%clk 0:01:36.4]} 18... Nxg3+ {[%clk 0:02:13.5]} 19. fxg3 {[%clk
0:01:37.3]} 19... e4 {[%clk 0:02:13.9]} 20. Ne5 {[%clk 0:01:37.4]} 20... Rf6
{[%clk 0:02:07]} 21. Rd7 {[%clk 0:01:35.5]} 21... Bb6 {[%clk 0:01:53.8]} 22. a4
{[%clk 0:01:28]} 22... Re8 {[%clk 0:01:53.1]} 23. Nc4 {[%clk 0:01:26.9]} 23...
f4 {[%clk 0:01:50.9]} 24. g4 {[%clk 0:01:20.2]} 24... f3 {[%clk 0:01:51.2]} 25.
a5 {[%clk 0:01:18.6]} 25... Bc5 {[%clk 0:01:07.3]} 26. Rxc7 {[%clk 0:01:12.1]}
26... e3 {[%clk 0:00:56.7]} 27. gxf3 {[%clk 0:00:58.8]} 27... Rxf3+ {[%clk
0:00:57.6]} 28. Kg2 {[%clk 0:00:58.1]} 28... Rf2+ {[%clk 0:00:58]} 29. Kg3
{[%clk 0:00:58.1]} 29... e2 {[%clk 0:00:58.4]} 30. Rxc6 {[%clk 0:00:56.4]} 30...
Rf1 {[%clk 0:00:58.8]} 31. Rxe2 {[%clk 0:00:51.9]} 31... Rxe2 {[%clk 0:00:50.8]}
32. Rxc5 {[%clk 0:00:51.7]} 32... Ref2 {[%clk 0:00:33.5]} 33. Ne5 {[%clk
0:00:46.2]} 33... Rxb2 {[%clk 0:00:30]} 34. Rc6 {[%clk 0:00:37]} 34... Rc2
{[%clk 0:00:28.2]} 35. Nf3 {[%clk 0:00:30.3]} 35... Ra1 {[%clk 0:00:22.2]} 36.
Nd4 {[%clk 0:00:27.8]} 36... Rd2 {[%clk 0:00:21.5]} 37. Rxa6 {[%clk 0:00:24.5]}
37... Rd3+ {[%clk 0:00:21.2]} 38. Kf2 {[%clk 0:00:23]} 38... Ra2+ {[%clk
0:00:20.4]} 39. Ne2 {[%clk 0:00:14.9]} 39... Rxh3 {[%clk 0:00:18.4]} 40. Ra8+
{[%clk 0:00:13.9]} 40... Kg7 {[%clk 0:00:18.9]} 41. Ra7+ {[%clk 0:00:14.8]}
41... Kf6 {[%clk 0:00:19.1]} 42. Ra6+ {[%clk 0:00:15.4]} 42... Ke5 {[%clk
0:00:19.5]} 43. Ra8 {[%clk 0:00:15.8]} 43... Rh2+ {[%clk 0:00:19.4]} 44. Kf3
{[%clk 0:00:15.5]} 44... Rh3+ {[%clk 0:00:17.5]} 45. Kf2 {[%clk 0:00:15.9]}
45... Rxc3 {[%clk 0:00:16.8]} 46. Re8+ {[%clk 0:00:15.2]} 46... Kd5 {[%clk
0:00:16.9]} 47. Rd8+ {[%clk 0:00:15.3]} 47... Ke6 {[%clk 0:00:16.2]} 48. Rh8
{[%clk 0:00:14]} 48... Rcc2 {[%clk 0:00:14.5]} 49. Kf3 {[%clk 0:00:14.2]} 49...
Ra3+ {[%clk 0:00:12.8]} 50. Kf2 {[%clk 0:00:14.1]} 50... Raa2 {[%clk 0:00:12.8]}
51. Kf3 {[%clk 0:00:14.1]} 51... Ra3+ {[%clk 0:00:13.2]} 52. Kf2 {[%clk
0:00:14.4]} 52... Kf7 {[%clk 0:00:13.3]} 53. Rxh6 {[%clk 0:00:08.1]} 53... Raa2
{[%clk 0:00:12.7]} 54. Rh7+ {[%clk 0:00:08.6]} 54... Kf8 {[%clk 0:00:11.9]} 55.
Rh8+ {[%clk 0:00:08.9]} 55... Kf7 {[%clk 0:00:12.4]} 56. Rh7+ {[%clk 0:00:09.3]}
56... Kf6 {[%clk 0:00:13]} 57. Rh6+ {[%clk 0:00:05.4]} 57... Ke5 {[%clk
0:00:13.3]} 58. a6 {[%clk 0:00:04.7]} 58... Rxe2+ {[%clk 0:00:13.8]} 59. Kf3
{[%clk 0:00:05.6]} 59... Rf2+ {[%clk 0:00:13.3]} 60. Ke3 {[%clk 0:00:06.1]}
60... Rfb2 {[%clk 0:00:13.5]} 61. a7 {[%clk 0:00:04.3]} 61... Rb3# {[%clk
0:00:13.4]} 0-1

[Event "*** Titled Tuesday Blitz"]
[Site "Chess.com"]
[Date "2021.03.30"]
[Round "1"]
[White "sganerdene"]
[Black "kakorrhaphiophobie"]
[Result "1-0"]
[WhiteElo "2646"]
[BlackElo "2341"]
[TimeControl "180+1"]
[EndTime "10:08:19 PDT"]
[Termination "sganerdene won on time"]

1. e4 {[%clk 0:03:00.9]} 1... e6 {[%clk 0:02:59.7]} 2. d4 {[%clk 0:03:00.3]}
2... d5 {[%clk 0:03:00.3]} 3. Nc3 {[%clk 0:03:00.8]} 3... Bb4 {[%clk 0:02:59.8]}
4. exd5 {[%clk 0:03:01]} 4... exd5 {[%clk 0:02:59.8]} 5. Bd3 {[%clk 0:03:01.4]}
5... Nf6 {[%clk 0:02:59.3]} 6. Ne2 {[%clk 0:03:00.1]} 6... O-O {[%clk
0:02:57.3]} 7. O-O {[%clk 0:03:00]} 7... Re8 {[%clk 0:02:56.1]} 8. a3 {[%clk
0:02:57]} 8... Bf8 {[%clk 0:02:48.5]} 9. Bg5 {[%clk 0:02:55.5]} 9... c6 {[%clk
0:02:47.9]} 10. Ng3 {[%clk 0:02:54]} 10... h6 {[%clk 0:02:41.6]} 11. Bf4 {[%clk
0:02:52.3]} 11... g6 {[%clk 0:02:34.5]} 12. Qd2 {[%clk 0:02:51.1]} 12... Kh7
{[%clk 0:02:31.5]} 13. Rfe1 {[%clk 0:02:47.3]} 13... Rxe1+ {[%clk 0:02:25.5]}
14. Rxe1 {[%clk 0:02:46.7]} 14... Bg7 {[%clk 0:02:16.2]} 15. h4 {[%clk
0:02:42.4]} 15... h5 {[%clk 0:01:53.1]} 16. Bg5 {[%clk 0:02:35.2]} 16... Kg8
{[%clk 0:01:51.7]} 17. Qf4 {[%clk 0:02:31.6]} 17... b6 {[%clk 0:01:23.7]} 18. b4
{[%clk 0:01:57.3]} 18... Bb7 {[%clk 0:00:47.2]} 19. Nb1 {[%clk 0:01:55.6]} 19...
a5 {[%clk 0:00:44.7]} 20. Nd2 {[%clk 0:01:52.2]} 20... Ba6 {[%clk 0:00:38.4]}
21. Nf3 {[%clk 0:01:43]} 21... Bxd3 {[%clk 0:00:35.3]} 22. cxd3 {[%clk
0:01:43.9]} 22... axb4 {[%clk 0:00:35.7]} 23. axb4 {[%clk 0:01:44.4]} 23... Nbd7
{[%clk 0:00:31.4]} 24. Qd6 {[%clk 0:01:39.6]} 24... Rc8 {[%clk 0:00:27.9]} 25.
Ne5 {[%clk 0:01:37.3]} 25... Bf8 {[%clk 0:00:23.9]} 26. Bxf6 {[%clk 0:01:16.9]}
26... Bxd6 {[%clk 0:00:21.4]} 27. Bxd8 {[%clk 0:01:15.9]} 27... Bxe5 {[%clk
0:00:17.5]} 28. dxe5 {[%clk 0:01:12.7]} 28... Rxd8 {[%clk 0:00:17.3]} 29. d4
{[%clk 0:01:12.5]} 29... c5 {[%clk 0:00:17.8]} 30. bxc5 {[%clk 0:01:10.7]} 30...
bxc5 {[%clk 0:00:18.4]} 31. Ne2 {[%clk 0:01:09.3]} 31... cxd4 {[%clk 0:00:18.1]}
32. Nxd4 {[%clk 0:01:10.2]} 32... Nc5 {[%clk 0:00:18.3]} 33. Rd1 {[%clk
0:01:08.9]} 33... Re8 {[%clk 0:00:17.9]} 34. Nf3 {[%clk 0:01:01.8]} 34... Rd8
{[%clk 0:00:18.2]} 35. g3 {[%clk 0:00:59.8]} 35... Kf8 {[%clk 0:00:18.6]} 36.
Kg2 {[%clk 0:01:00.2]} 36... Ke7 {[%clk 0:00:19.1]} 37. Nd4 {[%clk 0:01:00.5]}
37... Rc8 {[%clk 0:00:15.1]} 38. Rc1 {[%clk 0:00:59.3]} 38... Rc7 {[%clk
0:00:13.3]} 39. Nb5 {[%clk 0:00:55.5]} 39... Rc6 {[%clk 0:00:11.7]} 40. Rd1
{[%clk 0:00:54.9]} 40... Rb6 {[%clk 0:00:09.1]} 41. Nc3 {[%clk 0:00:53.2]} 41...
Ke6 {[%clk 0:00:07]} 42. Nxd5 {[%clk 0:00:52.5]} 42... Rb2 {[%clk 0:00:07.4]}
43. Nf4+ {[%clk 0:00:46.2]} 43... Kxe5 {[%clk 0:00:07.3]} 44. Rd5+ {[%clk
0:00:46.2]} 44... Kf6 {[%clk 0:00:06.8]} 45. Rxc5 {[%clk 0:00:47.1]} 45... Kg7
{[%clk 0:00:06.6]} 46. Rc6 {[%clk 0:00:46.7]} 46... Ra2 {[%clk 0:00:06.8]} 47.
Nh3 {[%clk 0:00:45.6]} 47... Ra7 {[%clk 0:00:05.9]} 48. Ng5 {[%clk 0:00:45.8]}
48... Rb7 {[%clk 0:00:06.4]} 49. Ne4 {[%clk 0:00:44.8]} 49... Ra7 {[%clk
0:00:06.6]} 50. Nd6 {[%clk 0:00:44.3]} 50... Rd7 {[%clk 0:00:07.3]} 51. Nc4
{[%clk 0:00:42.5]} 51... Ra7 {[%clk 0:00:07.7]} 52. Rd6 {[%clk 0:00:41.3]} 52...
Rb7 {[%clk 0:00:08.1]} 53. Ne5 {[%clk 0:00:41.6]} 53... Ra7 {[%clk 0:00:08.2]}
54. Rd7 {[%clk 0:00:41.8]} 54... Ra5 {[%clk 0:00:06.6]} 55. Nxf7 {[%clk
0:00:42.2]} 55... Kf6 {[%clk 0:00:05.9]} 56. Ng5 {[%clk 0:00:41.9]} 56... Ra2
{[%clk 0:00:06.4]} 57. Rf7+ {[%clk 0:00:39.6]} 57... Ke5 {[%clk 0:00:07.1]} 58.
Nf3+ {[%clk 0:00:37.6]} 58... Ke6 {[%clk 0:00:06.8]} 59. Rf4 {[%clk 0:00:37.2]}
59... Rb2 {[%clk 0:00:06.3]} 60. g4 {[%clk 0:00:37.1]} 60... hxg4 {[%clk
0:00:06.1]} 61. Rxg4 {[%clk 0:00:37.6]} 61... Kf5 {[%clk 0:00:05.6]} 62. Kg3
{[%clk 0:00:37.9]} 62... Rb1 {[%clk 0:00:03.7]} 63. Rg5+ {[%clk 0:00:38.1]}
63... Kf6 {[%clk 0:00:04.2]} 64. Rc5 {[%clk 0:00:34.7]} 64... Kg7 {[%clk
0:00:04.3]} 65. Ng5 {[%clk 0:00:31.2]} 65... Kh6 {[%clk 0:00:04.1]} 66. Rc7
{[%clk 0:00:31.2]} 66... Rg1+ {[%clk 0:00:04.4]} 67. Kh2 {[%clk 0:00:29.9]} 1-0

[Event "*** Titled Tuesday Blitz"]
[Site "Chess.com"]
[Date "2021.03.30"]
[Round "1"]
[White "hypert"]
[Black "Soltan49"]
[Result "1/2-1/2"]
[WhiteElo "2522"]
[BlackElo "2213"]
[TimeControl "180+1"]
[EndTime "10:08:20 PDT"]
[Termination "Game drawn by repetition"]

1. Nf3 {[%clk 0:03:00.1]} 1... Nf6 {[%clk 0:02:55.9]} 2. e3 {[%clk 0:03:01]}
2... c5 {[%clk 0:02:55.2]} 3. b3 {[%clk 0:03:00.9]} 3... b6 {[%clk 0:02:55.4]}
4. Bb2 {[%clk 0:03:01.3]} 4... Bb7 {[%clk 0:02:55.9]} 5. c4 {[%clk 0:03:01.7]}
5... d5 {[%clk 0:02:55]} 6. cxd5 {[%clk 0:03:01.3]} 6... Nxd5 {[%clk 0:02:54.2]}
7. d3 {[%clk 0:03:01.9]} 7... Nd7 {[%clk 0:02:51.6]} 8. Be2 {[%clk 0:03:01.3]}
8... N7f6 {[%clk 0:02:51.8]} 9. O-O {[%clk 0:03:01.3]} 9... e6 {[%clk
0:02:52.5]} 10. a3 {[%clk 0:03:01.6]} 10... Be7 {[%clk 0:02:52.1]} 11. Nbd2
{[%clk 0:03:02]} 11... O-O {[%clk 0:02:50.1]} 12. Rc1 {[%clk 0:03:01.4]} 12...
a6 {[%clk 0:02:47.6]} 13. Re1 {[%clk 0:02:59.6]} 13... Rc8 {[%clk 0:02:47.2]}
14. Bf1 {[%clk 0:02:59.9]} 14... b5 {[%clk 0:02:40.3]} 15. Qc2 {[%clk 0:02:55]}
15... h6 {[%clk 0:02:38.6]} 16. Qb1 {[%clk 0:02:54.9]} 16... Nd7 {[%clk
0:02:10.1]} 17. d4 {[%clk 0:02:49.2]} 17... Bf6 {[%clk 0:02:08.1]} 18. Ne4
{[%clk 0:02:40.9]} 18... Be7 {[%clk 0:01:50.4]} 19. dxc5 {[%clk 0:02:25.3]}
19... Nxc5 {[%clk 0:01:50.6]} 20. Nxc5 {[%clk 0:02:22.9]} 20... Bxc5 {[%clk
0:01:37.5]} 21. Qa1 {[%clk 0:02:21.6]} 21... f6 {[%clk 0:01:36.6]} 22. b4 {[%clk
0:02:14.8]} 22... Bb6 {[%clk 0:01:23.7]} 23. Bd4 {[%clk 0:02:08.1]} 23... e5
{[%clk 0:01:18.1]} 24. Rxc8 {[%clk 0:02:03.1]} 24... Qxc8 {[%clk 0:01:08.1]} 25.
Bxb6 {[%clk 0:02:01.8]} 25... Nxb6 {[%clk 0:01:09]} 26. Rc1 {[%clk 0:01:59.1]}
26... Qe6 {[%clk 0:01:09.1]} 27. Be2 {[%clk 0:01:54.2]} 27... Rd8 {[%clk
0:01:07.3]} 28. h3 {[%clk 0:01:51]} 28... Nc4 {[%clk 0:00:54.7]} 29. Qc3 {[%clk
0:01:50.5]} 29... Rc8 {[%clk 0:00:50.6]} 30. Qa1 {[%clk 0:01:25.6]} 30... Kh8
{[%clk 0:00:39.4]} 31. a4 {[%clk 0:01:20.1]} 31... Qb6 {[%clk 0:00:31]} 32. axb5
{[%clk 0:01:13.6]} 32... axb5 {[%clk 0:00:25.2]} 33. Qb1 {[%clk 0:01:08.7]}
33... Nxe3 {[%clk 0:00:23.4]} 34. Rxc8+ {[%clk 0:01:05.2]} 34... Bxc8 {[%clk
0:00:23.2]} 35. fxe3 {[%clk 0:01:05.5]} 35... Qxe3+ {[%clk 0:00:23.2]} 36. Kf1
{[%clk 0:01:05.9]} 36... e4 {[%clk 0:00:19.7]} 37. Ne1 {[%clk 0:00:50.1]} 37...
Bxh3 {[%clk 0:00:18.5]} 38. gxh3 {[%clk 0:00:41.3]} 38... Qxh3+ {[%clk
0:00:18.3]} 39. Kg1 {[%clk 0:00:41.6]} 39... Qe3+ {[%clk 0:00:18.8]} 40. Kh2
{[%clk 0:00:32.9]} 40... Qxe2+ {[%clk 0:00:18.7]} 41. Ng2 {[%clk 0:00:33.3]}
41... Qh5+ {[%clk 0:00:16.8]} 42. Kg1 {[%clk 0:00:32.2]} 42... Qf3 {[%clk
0:00:16.8]} 43. Qf1 {[%clk 0:00:20.7]} 43... Qxf1+ {[%clk 0:00:16.3]} 44. Kxf1
{[%clk 0:00:21.6]} 44... f5 {[%clk 0:00:15.6]} 45. Ne3 {[%clk 0:00:21.4]} 45...
g6 {[%clk 0:00:16.2]} 46. Nd5 {[%clk 0:00:21.1]} 46... Kg7 {[%clk 0:00:14]} 47.
Nc7 {[%clk 0:00:20.8]} 47... g5 {[%clk 0:00:13.8]} 48. Nxb5 {[%clk 0:00:21.2]}
48... Kf6 {[%clk 0:00:14.5]} 49. Nd4 {[%clk 0:00:20.9]} 49... Ke5 {[%clk
0:00:14.4]} 50. b5 {[%clk 0:00:19.2]} 50... Kd6 {[%clk 0:00:11.1]} 51. Ke2
{[%clk 0:00:19.3]} 51... Kc5 {[%clk 0:00:11.1]} 52. Ke3 {[%clk 0:00:18.3]} 52...
f4+ {[%clk 0:00:10.7]} 53. Kxe4 {[%clk 0:00:18.1]} 53... f3 {[%clk 0:00:10]} 54.
Kxf3 {[%clk 0:00:17.6]} 54... h5 {[%clk 0:00:09.8]} 55. Kg3 {[%clk 0:00:17.5]}
55... Kb6 {[%clk 0:00:08]} 56. Kf3 {[%clk 0:00:17.2]} 56... Kc5 {[%clk 0:00:08]}
57. Ke4 {[%clk 0:00:17.6]} 57... Kb6 {[%clk 0:00:08.4]} 58. Kf5 {[%clk
0:00:17.5]} 58... h4 {[%clk 0:00:06.8]} 59. Kg4 {[%clk 0:00:17.3]} 59... Kc5
{[%clk 0:00:07.2]} 60. Kh3 {[%clk 0:00:16.8]} 60... Kb6 {[%clk 0:00:07.5]} 61.
Kg4 {[%clk 0:00:16.7]} 61... Kc5 {[%clk 0:00:08.1]} 62. Kf3 {[%clk 0:00:16.9]}
62... Kb6 {[%clk 0:00:08.3]} 63. Kg4 {[%clk 0:00:16.8]} 1/2-1/2